[Event "French-ch U16-U18 2024"]
[Site "Agen"]
[Date "2024.04.15"]
[Round "2.3"]
[White "Delmouly, Manon"]
[Black "Bert, Lisa"]
[Result "1/2-1/2"]
[ECO "D35"]
[WhiteElo "1800"]
[BlackElo "1698"]
[Annotator "NA RC"]
[PlyCount "82"]
[EventDate "2024.04.14"]
[EventType "swiss"]
[EventCountry "FRA"]
[SourceTitle "playchess.com"]
[Source "ChessBase"]
[SourceQuality "1"]
[TimeControl "5400+30"]

1. d4 {[%emt 0:00:03]} d5 {[%emt 0:12:06]} 2. Nf3 {[%emt 0:00:14]} Nf6 {[%emt 0:02:15]} 3. c4 {[%emt 0:00:35]} e6 {[%emt 0:02:15]} 4. Nc3 {[%emt 0:02:14]} Be7 {[%emt 0:03:54]} 5. Bf4 {[%emt 0:05:31]} c6 {[%emt 0:04:45]} 6. e3 {[%emt 0:00:46]} Nbd7 {[%emt 0:03:03]} 7. cxd5 {[%emt 0:00:29]} exd5 {[%emt 0:00:30]} 8. Bd3 {[%emt 0:00:38] 8.h3 might become the main line.} Qb6 {[%emt 0:17:09] D35: Queen's Gambit Declined: Exchange Variation.} (8... Nh5 $11 {should be considered.}) 9. Qc2 {[%emt 0:01:03]} Nh5 $146 {[%emt 0:08:27]} ({Predecessor:} 9... Nf8 10. h3 Ng6 11. Bh2 Bd7 12. O-O O-O 13. a3 c5 14. dxc5 Bxc5 15. b4 Bd6 16. Bxd6 Qxd6 {1-0 Beutelhoff,J (2108)-Simon,G (1830) Hessen-ch Seniors op 12th 2016 (1)}) 10. Bg3 {[%emt 0:01:45]} h6 {[%emt 0:03:01]} 11. Rb1 {[%emt 0:01:56]} Nxg3 {[%emt 0:02:00]} 12. hxg3 {[%emt 0:00:12]} Bf6 {[%emt 0:00:57]} 13. b4 {[%emt 0:00:53]} a6 {[%emt 0:02:04]} 14. a4 {[%emt 0:01:44]} O-O {[%emt 0:02:18]} 15. O-O {[%emt 0:00:58]} Qd8 {[%emt 0:03:38]} 16. b5 {[%emt 0:03:00]} axb5 {[%emt 0:00:39]} 17. axb5 {[%emt 0:00:18]} Qe7 {[%emt 0:06:24]} 18. Rfc1 {[%emt 0:02:20]} Qd6 {[%emt 0:02:48]} 19. bxc6 $16 {[%emt 0:00:57]} bxc6 {[%emt 0:00:34]} 20. Na2 {[%emt 0:17:23]} c5 {[%emt 0:04:21]} 21. dxc5 {[%emt 0:00:48]} Nxc5 {[%emt 0:00:40]} 22. Qxc5 {[%emt 0:01:05]} Qxc5 {[%emt 0:00:08]} 23. Rxc5 {[%emt 0:00:12]} Rxa2 {[%emt 0:00:12]} 24. Rxd5 {[%emt 0:00:19]} Be6 {[%emt 0:01:21]} 25. Rdb5 {[%emt 0:01:33]} g6 {[%emt 0:00:32]} 26. Rb6 {[%emt 0:01:34]} Kg7 {[%emt 0:01:06]} 27. Ra6 {[%emt 0:14:26]} Rd8 {[%emt 0:02:22]} 28. Bf1 {[%emt 0:03:53]} Rxa6 {[%emt 0:01:42]} 29. Bxa6 {[%emt 0:00:09]} Rd6 {[%emt 0:00:56]} 30. Be2 {[%emt 0:02:32]} Rc6 {[%emt 0:02:36]} 31. Kf1 {[%emt 0:01:47]} Ba2 {[%emt 0:01:35]} 32. Rd1 {[%emt 0:00:57]} Bb3 {[%emt 0:00:42]} 33. Rb1 {[%emt 0:01:53]} Ba2 {[%emt 0:00:08]} 34. Re1 {[%emt 0:00:18]} Rb6 {[%emt 0:03:44]} 35. e4 {[%emt 0:02:39]} Bc3 {[%emt 0:01:39]} 36. Rc1 {[%emt 0:00:27]} Rb1 {[%emt 0:00:56]} 37. Rd1 {[%emt 0:04:30]} Rxd1+ {[%emt 0:00:41]} 38. Bxd1 {[%emt 0:00:05]} Bb1 {[%emt 0:00:08]} 39. e5 {[%emt 0:00:43]} Be4 {[%emt 0:00:12]} 40. Ke2 {[%emt 0:00:48]} Bxf3+ {[%emt 0:00:11]} 41. Kxf3 {[%emt 0:00:48]} Bxe5 {[%emt 0:06:21]} 1/2-1/2

[Event "French-ch U16-U18 2024"]
[Site "Agen"]
[Date "2024.04.15"]
[Round "2.4"]
[White "Tahar-Chaouch, Nefissa"]
[Black "Lavilledieu, Lily-Mei"]
[Result "0-1"]
[ECO "A00"]
[WhiteElo "1689"]
[BlackElo "1783"]
[Annotator "NA RC"]
[PlyCount "52"]
[EventDate "2024.04.14"]
[EventType "swiss"]
[EventCountry "FRA"]
[SourceTitle "playchess.com"]
[Source "ChessBase"]
[SourceQuality "1"]
[TimeControl "5400+30"]

1. b4 {[%emt 0:05:23]} e5 {[%emt 0:05:59]} 2. Bb2 {[%emt 0:00:12]} d6 {[%emt 0:00:11]} 3. e3 {[%emt 0:00:09]} Bf5 {[%emt 0:01:15]} 4. Nf3 {[%emt 0:00:32]} Nd7 {[%emt 0:01:22]} 5. c4 {[%emt 0:00:26]} Ngf6 {[%emt 0:03:38]} 6. Be2 {[%emt 0:02:26]} Be7 {[%emt 0:02:35]} 7. O-O {[%emt 0:00:32]} O-O {[%emt 0:06:02]} 8. Nc3 {[%emt 0:03:22]} Re8 {[%emt 0:01:27]} 9. d4 {[%emt 0:03:10]} h6 {[%emt 0:03:58]} 10. d5 {[%emt 0:02:30]} c6 {[%emt 0:07:39]} 11. a4 {[%emt 0:10:50]} a5 {[%emt 0:10:03]} 12. b5 {[%emt 0:01:52]} c5 {[%emt 0:03:04]} 13. Nh4 {[%emt 0:08:26]} Bh7 {[%emt 0:01:27]} 14. g3 {[%emt 0:07:50]} g5 {[%emt 0:15:07]} 15. Ng2 {[%emt 0:00:41]} e4 {[%emt 0:01:29]} 16. f4 {[%emt 0:03:44]} exf3 {[%emt 0:02:26]} 17. Bxf3 {[%emt 0:01:04]} Ne5 {[%emt 0:00:38]} 18. Be2 {[%emt 0:02:16]} Qd7 {[%emt 0:02:34]} 19. Ne1 {[%emt 0:02:57]} Qh3 {[%emt 0:07:41]} 20. Rf2 {[%emt 0:01:14]} Nfg4 {[%emt 0:02:48]} 21. Bxg4 {[%emt 0:00:26]} Nxg4 {[%emt 0:00:15]} 22. Re2 {[%emt 0:00:53]} Bf6 {[%emt 0:02:03]} 23. Qd2 {[%emt 0:03:41]} Nxe3 {[%emt 0:04:30]} 24. Rf2 {[%emt 0:04:30]} Nxc4 {[%emt 0:03:48]} 25. Qc1 {[%emt 0:01:51]} Bd4 {[%emt 0:00:54]} 26. Nd1 {[%emt 0:01:55]} Rxe1# {[%emt 0:00:26]} 0-1

[Event "French-ch U16-U18 2024"]
[Site "Agen"]
[Date "2024.04.15"]
[Round "2.5"]
[White "Pereira-Davoine, Alana"]
[Black "Akbarova, Ania"]
[Result "1-0"]
[ECO "E51"]
[WhiteElo "1780"]
[BlackElo "1685"]
[Annotator "NA RC"]
[PlyCount "73"]
[EventDate "2024.04.14"]
[EventType "swiss"]
[EventCountry "FRA"]
[SourceTitle "playchess.com"]
[Source "ChessBase"]
[SourceQuality "1"]
[TimeControl "5400+30"]

1. d4 {[%emt 0:00:05]} Nf6 {[%emt 0:00:10]} 2. c4 {[%emt 0:00:22]} e6 {[%emt 0:00:33]} 3. Nc3 {[%emt 1:31:33]} Bb4 {[%emt 0:00:43]} 4. e3 {[%emt 0:00:00]} O-O {[%emt 0:02:43]} 5. Bd3 {[%emt 0:00:00]} d5 {[%emt 0:04:30]} 6. Nf3 {[%emt 0:00:00]} c5 {[%emt 0:17:37]} 7. O-O {[%emt 0:00:00]} Bxc3 {[%emt 0:00:52]} 8. bxc3 {[%emt 0:00:00]} Nbd7 {[%emt 0:02:07]} 9. Qc2 {[%emt 0:00:00]} Qc7 {[%emt 0:03:33]} 10. Bb2 {[%emt 0:00:00]} Re8 {[%emt 0:06:28]} 11. Rfd1 {[%emt 0:00:00]} b6 {[%emt 0:09:50]} 12. cxd5 {[%emt 0:00:00]} Nxd5 {[%emt 0:06:48]} 13. Bxh7+ {[%emt 0:00:00]} Kh8 {[%emt 0:01:58]} 14. Ng5 {[%emt 0:00:00]} N7f6 {[%emt 0:02:25]} 15. dxc5 {[%emt 0:00:00]} bxc5 {[%emt 0:07:14]} 16. c4 {[%emt 0:00:00]} Nb4 {[%emt 0:02:33]} 17. Qe2 {[%emt 0:00:00]} e5 {[%emt 0:02:11]} 18. Be4 {[%emt 0:00:00]} Rb8 {[%emt 0:03:37]} 19. Rd2 {[%emt 0:02:03]} g6 {[%emt 0:03:21]} 20. f4 {[%emt 0:00:45]} Nxe4 {[%emt 0:02:53]} 21. Nxe4 {[%emt 0:00:11]} Nc6 {[%emt 0:01:43]} 22. Qf2 {[%emt 0:00:40]} Kg7 {[%emt 0:01:06]} 23. Qh4 {[%emt 0:00:22]} Qe7 {[%emt 0:01:49]} 24. Qxe7 {[%emt 0:00:11]} Rxe7 {[%emt 0:00:06]} 25. Nxc5 {[%emt 0:00:09]} f6 {[%emt 0:01:31]} 26. Bc3 {[%emt 0:01:10]} Rb6 {[%emt 0:05:28]} 27. Ne4 {[%emt 0:00:45]} Bf5 {[%emt 0:03:00]} 28. Nd6 {[%emt 0:00:28]} Be6 {[%emt 0:00:46]} 29. Rc1 {[%emt 0:01:50]} Ra6 {[%emt 0:01:39]} 30. Kf2 {[%emt 0:00:09]} Ra4 {[%emt 0:00:29]} 31. Ba1 {[%emt 0:01:21]} Bg8 {[%emt 0:00:26]} 32. fxe5 {[%emt 0:02:18]} Nxe5 {[%emt 0:00:38]} 33. Bxe5 {[%emt 0:00:06]} Rxe5 {[%emt 0:00:27]} 34. c5 {[%emt 0:00:38]} Re7 {[%emt 0:01:33]} 35. c6 {[%emt 0:00:17]} Rc7 {[%emt 0:00:01]} 36. Ne8+ {[%emt 0:00:11]} Kf8 {[%emt 0:00:05]} 37. Nxc7 {[%emt 0:00:10]} 1-0

[Event "French-ch U16-U18 2024"]
[Site "Agen"]
[Date "2024.04.15"]
[Round "2.6"]
[White "Pires, Oscar"]
[Black "Kuhn, Clement"]
[Result "0-1"]
[ECO "E61"]
[WhiteElo "1941"]
[BlackElo "2349"]
[Annotator "TA"]
[PlyCount "82"]
[EventDate "2024.04.14"]
[EventType "swiss"]
[EventCountry "FRA"]
[SourceTitle "playchess.com"]
[Source "ChessBase"]
[SourceQuality "1"]
[TimeControl "5400+30"]

{[%evp 14,82,15,21,15,0,0,0,14,3,13,0,7,-7,0,-7,0,-46,-52,-76,-16,-47,-11,-59,-54,-58,-58,-53,0,0,0,-54,-29,-117,-100,-104,-93,-93,-103,-104,-99,-108,-96,-203,-210,-210,-116,-396,-321,-292,-209,-354,-306,-569,-551,-541,-227,-1087,-1065,-29979,-29980,-29980,-29981,-29981,-29982,-29982,-29983,-29983,-29984,-29979,-2268]} 1. d4 {[%emt 0:00:04]} g6 {[%emt 0:00:45]} 2. Nf3 {[%emt 0:00:15]} Bg7 {[%emt 0:00:05]} 3. c4 {[%emt 0:00:13]} d6 {[%emt 0:00:06]} 4. Nc3 {[%emt 0:00:41]} Nf6 {[%emt 0:00:41]} 5. Bg5 {[%emt 0:00:50]} h6 {[%emt 0:00:41]} 6. Bh4 {[%emt 0:00:53]} g5 {[%emt 0:00:37]} 7. Bg3 {[%emt 0:00:12]} Nh5 {[%emt 0:00:05]} 8. e3 {[%emt 0:02:08]} c5 {[%emt 0:02:46]} 9. d5 {[%emt 0:09:48]} Nxg3 {[%emt 0:00:06]} 10. hxg3 {[%emt 0:00:12]} Bxc3+ {[%emt 0:00:23] The position is equal.} 11. bxc3 {[%emt 0:00:17] next Nxg5 is good for White.} Kd7 {[%emt 0:00:06]} 12. Bd3 {[%emt 0:11:34]} Kc7 {[%emt 0:02:40]} 13. Qc2 {[%emt 0:03:44]} Nd7 {[%emt 0:05:43]} 14. Ke2 {[%emt 0:07:45]} Qg8 {[%emt 0:06:23]} 15. Nd2 {[%emt 0:08:50]} (15. Rab1 $11 {should be considered.}) 15... Ne5 $15 {[%emt 0:02:43]} 16. f3 {[%emt 0:01:42]} Bd7 {[%emt 0:05:12]} (16... h5 $17) 17. g4 $11 {[%emt 0:07:17]} Qg7 {[%emt 0:05:05]} 18. Nf1 {[%emt 0:01:36]} (18. Be4 $11) 18... Nxd3 $15 {[%emt 0:06:03]} 19. Qxd3 {[%emt 0:00:15]} Qe5 $1 {[%emt 0:00:30]} 20. e4 {[%emt 0:03:39] [#]} h5 $1 {[%emt 0:07:57]} 21. gxh5 $11 {[%emt 0:01:33]} g4 {[%emt 0:00:06]} 22. Kd2 {[%emt 0:06:50]} (22. h6 gxf3+ 23. Qxf3 (23. gxf3 Qg5 $17) 23... Rag8 $17) (22. f4 $1 $11 Qxf4 23. Qe3 Qxe3+ 24. Nxe3) 22... Rag8 {[%emt 0:01:46] Threatens to win with ...gxf3.} (22... Rxh5 {simplifies} 23. Rxh5 Qxh5 24. f4 Qh6) 23. Ne3 {[%emt 0:00:46]} (23. f4 $1 $11 {remains equal.} Qxf4+ 24. Qe3 Qxe3+ 25. Kxe3) 23... gxf3 $17 {[%emt 0:00:32]} (23... Rxh5 24. Rxh5 Qxh5 25. f4 $15) 24. gxf3 {[%emt 0:00:12]} Rxh5 {[%emt 0:06:32] Black is more active.} 25. Rxh5 {[%emt 0:01:52]} Qxh5 {[%emt 0:00:00]} 26. Qe2 {[%emt 0:00:17]} Qh6 {[%emt 0:04:25]} 27. Qf2 {[%emt 0:06:14]} Qf4 {[%emt 0:01:31] Strongly threatening ...Rg3.} 28. Ke2 {[%emt 0:02:35] [#]} (28. Rh1 $17 {is the only way for White.}) 28... Rh8 $1 $19 {[%emt 0:09:24] Hoping for ...Rh2.} 29. Rg1 {[%emt 0:01:00]} a6 {[%emt 0:01:38]} (29... Rh3 $19 {...f5 is the strong threat.} 30. Nf1 a6) 30. Ng2 $2 {[%emt 0:02:22][%mdl 8192] Now White is beyond hope.} (30. Qg3 $17 Qf6 (30... Rh2+ 31. Kd3 $11) 31. Nd1) 30... Qf6 {[%emt 0:00:25]} 31. Qe3 {[%emt 0:03:17]} b5 {[%emt 0:00:38]} 32. cxb5 {[%emt 0:01:33]} (32. Ne1 $142) 32... axb5 {[%emt 0:00:07]} (32... Bxb5+ 33. Kf2 $17) 33. Qd2 $2 {[%emt 0:03:36]} (33. a3) 33... Rg8 {[%emt 0:02:08]} 34. Kf2 {[%emt 0:00:54]} Bh3 {[%emt 0:01:31]} (34... Qg7 $142 35. Qd3 Qg3+ 36. Ke3 Qh2 (36... Bh3 $2 37. Qxb5 Qg5+ 38. Kd3 $17)) 35. c4 $2 {[%emt 0:04:33]} (35. Qc1) 35... b4 {[%emt 0:00:10]} (35... bxc4 36. Qa5+ Kd7 37. Qa7+ Kd8 38. Qb6+ (38. Qa5+ Kd7 $11) 38... Kc8 39. Qa6+ Kd8 40. Qb6+ (40. Qa5+ Kd7 $11) 40... Kc8 41. Qc6+ Kd8 42. Qb6+ $11) 36. a3 {[%emt 0:00:32]} Bxg2 {[%emt 0:02:24] Black mates.} ({Worse is} 36... bxa3 37. Qa5+ Kd7 38. Qa7+ Kd8 39. Qa5+ Kd7 40. Qb5+ Kc8 41. Qa6+ Kc7 42. Qa5+ Kd7 $11) 37. Rxg2 {[%emt 0:00:10]} Qc3 {[%emt 0:04:03]} 38. Qe2 {[%emt 0:00:56]} Qd4+ {[%emt 0:00:07]} 39. Kf1 {[%emt 0:00:44]} Qa1+ {[%emt 0:00:02]} 40. Kf2 {[%emt 0:00:10]} Rxg2+ {[%emt 0:00:05]} 41. Kxg2 {[%emt 0:00:04]} b3 {[%emt 0:00:24] Weighted Error Value: White=0.74/Black=0.29 (precise) .  Loses game:     	White=1     	---        Mistake:       	White=8     	Black=4      Inaccurate:     	White=1     	Black=1      OK:         	White=4     	Black=10     Best:        	White=3     	Black=1      Strong:       	---       	Black=1} (41... bxa3 $142 42. f4 Qb2 43. Qxb2 axb2 44. e5 b1=Q (44... b1=B $2 45. Kg3 $19) 45. Kf3 Qd3+ 46. Kf2 Qxc4 47. Kg3 Qxd5 48. exd6+ Qxd6 49. Kg4 c4 50. f5 c3 51. f6 Qxf6 52. Kg3 c2 53. Kh2 Qf3 (53... c1=B {leads to mate.} 54. Kg2 Be3 55. Kg3 Qf2+ 56. Kh3 Qf3+ 57. Kh2 Qg4 58. Kh1 Qh3#) 54. Kg1 c1=Q+ 55. Kh2 Qch1#) 0-1

[Event "French-ch U16-U18 2024"]
[Site "Agen"]
[Date "2024.04.15"]
[Round "2.7"]
[White "Breuil, Tristan"]
[Black "Reymann, Nathan"]
[Result "1-0"]
[ECO "B32"]
[WhiteElo "2281"]
[BlackElo "1938"]
[Annotator "RC"]
[PlyCount "67"]
[EventDate "2024.04.14"]
[EventType "swiss"]
[EventCountry "FRA"]
[SourceTitle "playchess.com"]
[Source "ChessBase"]
[SourceQuality "1"]
[TimeControl "5400+30"]

1. e4 {[%emt 0:00:03]} c5 {[%emt 0:00:59]} 2. Nf3 {[%emt 0:00:21]} Nc6 {[%emt 0:01:06]} 3. d4 {[%emt 0:00:09]} cxd4 {[%emt 0:00:04]} 4. Nxd4 {[%emt 0:00:06]} e5 {[%emt 0:00:04]} 5. Nb5 {[%emt 0:00:55]} d6 {[%emt 0:00:15]} 6. c4 {[%emt 0:01:00]} g6 {[%emt 0:00:42]} 7. Bd3 {[%emt 0:03:04]} a6 {[%emt 0:02:45]} 8. N5c3 {[%emt 0:00:45]} Bg7 {[%emt 0:04:32]} 9. Nd5 {[%emt 0:02:47]} Nge7 {[%emt 0:03:24]} 10. Nbc3 {[%emt 0:11:18]} O-O {[%emt 0:02:22]} 11. O-O {[%emt 0:01:16]} Nxd5 {[%emt 0:09:48]} 12. Nxd5 {[%emt 0:01:09]} Nd4 {[%emt 0:02:49]} 13. Be3 {[%emt 0:13:40]} f5 {[%emt 0:11:49]} 14. Bxd4 {[%emt 0:09:33]} exd4 {[%emt 0:01:19]} 15. f4 {[%emt 0:06:28]} Kh8 {[%emt 0:13:07]} 16. Re1 {[%emt 0:05:15]} Rb8 {[%emt 0:12:21]} 17. Rc1 {[%emt 0:01:27]} fxe4 {[%emt 0:13:07]} 18. Bxe4 {[%emt 0:01:41]} b5 {[%emt 0:05:28]} 19. cxb5 {[%emt 0:11:59]} Rxb5 {[%emt 0:00:36]} 20. b4 {[%emt 0:00:24]} Rf7 {[%emt 0:06:35]} 21. Qc2 {[%emt 0:04:07]} Rb8 {[%emt 0:04:33]} 22. Nc7 {[%emt 0:16:38]} Rf8 {[%emt 0:01:08]} 23. Qb3 {[%emt 0:02:04]} Rb6 {[%emt 0:01:43]} 24. a4 {[%emt 0:01:22]} Rb8 {[%emt 0:01:05]} 25. h3 {[%emt 0:01:39]} Qh4 {[%emt 0:00:26]} 26. b5 {[%emt 0:01:43]} axb5 {[%emt 0:00:17]} 27. a5 {[%emt 0:00:28]} d3 {[%emt 0:00:59]} 28. Qxd3 {[%emt 0:00:39]} Bb7 {[%emt 0:00:27]} 29. a6 {[%emt 0:01:16]} Bxe4 {[%emt 0:00:10]} 30. Rxe4 {[%emt 0:00:15]} Rbc8 {[%emt 0:00:27]} 31. a7 {[%emt 0:00:55]} Rxf4 {[%emt 0:01:00]} 32. g3 {[%emt 0:01:01]} Qxh3 {[%emt 0:00:28]} 33. Rxf4 {[%emt 0:00:17]} Bh6 {[%emt 0:00:24]} 34. Rh4 {[%emt 0:01:12]} 1-0

[Event "French-ch U16-U18 2024"]
[Site "Agen"]
[Date "2024.04.15"]
[Round "2.8"]
[White "Anes, Thomas"]
[Black "Vallee, Louis"]
[Result "0-1"]
[ECO "C56"]
[WhiteElo "1939"]
[BlackElo "2270"]
[Annotator "TA"]
[PlyCount "54"]
[EventDate "2024.04.14"]
[EventType "swiss"]
[EventCountry "FRA"]
[SourceTitle "playchess.com"]
[Source "ChessBase"]
[SourceQuality "1"]
[TimeControl "5400+30"]

{[%evp 17,54,0,0,0,0,0,0,0,0,0,47,62,74,15,0,0,0,-202,-204,-225,-214,-208,-157,-637,-638,-1076,-891,-887,-905,-890,-893,-921,-892,-889,-900,-901,-805,-965,-957]} 1. e4 {[%emt 0:00:00]} e5 {[%emt 0:02:02]} 2. Nf3 {[%emt 0:00:04]} Nc6 {[%emt 0:00:07]} 3. d4 {[%emt 0:00:01]} exd4 {[%emt 0:00:11]} 4. Bc4 {[%emt 0:00:01]} Nf6 {[%emt 0:00:52]} 5. Ng5 {[%emt 0:00:02]} d5 {[%emt 0:15:29]} 6. exd5 {[%emt 0:00:06]} Na5 {[%emt 0:00:06]} 7. Qxd4 {[%emt 0:00:23]} Nxc4 {[%emt 0:00:31]} 8. Qxc4 {[%emt 0:00:05]} Qxd5 {[%emt 0:22:35]} 9. Qe2+ {[%emt 0:00:25]} Be7 {[%emt 0:00:06]} 10. O-O {[%emt 0:00:11]} Bg4 {[%emt 0:03:42][%cal Bc8g4,Bg4h5,Bh5g6][%mdl 32]} 11. f3 {[%emt 0:04:43]} Bh5 {[%emt 0:00:06]} 12. Nc3 {[%emt 0:05:13] The position is equal.} Qc5+ {[%emt 0:08:03]} 13. Be3 {[%emt 0:01:03]} Qe5 {[%emt 0:00:25]} (13... Qa5 $1 $11) 14. g4 $14 {[%emt 0:19:21]} h6 $1 {[%emt 0:00:09]} 15. Nh3 {[%emt 0:01:57]} (15. f4 $16 Bxg4 16. fxe5 Bxe2 17. exf6 (17. Nxe2 Nd5 $14) 17... Bxf1 18. fxe7) 15... Bg6 $36 {[%emt 0:00:26][%mdl 2048] Black has some pressure.} 16. f4 {[%emt 0:11:58]} Qa5 {[%emt 0:00:20]} 17. b4 $2 {[%emt 0:07:37]} Qxb4 $19 {[%emt 0:02:34]} (17... Bxb4 $2 {too greedy.} 18. Bb6+ (18. Bxa7+ $2 {is the wrong capture.} Kd8 $19) 18... Kf8 19. Bxa5 $18) 18. Nb5 {[%emt 0:01:44]} O-O {[%emt 0:04:11] [#] And now ...Bc5 would win.} 19. Rab1 {[%emt 0:13:56]} Qe4 {[%emt 0:04:49]} 20. Rbc1 $2 {[%emt 0:09:26] This move loses the game for White.} (20. Rbe1 $17) 20... Nd5 {[%emt 0:04:12] Black is clearly winning.} 21. Kf2 {[%emt 0:06:58]} Bh4+ {[%emt 0:01:35] A strong pair of Bishops.} 22. Kg1 {[%emt 0:00:50]} Qxe3+ {[%emt 0:01:54]} 23. Qxe3 {[%emt 0:00:10]} Nxe3 {[%emt 0:00:05]} 24. Rf3 {[%emt 0:00:40]} Nxg4 {[%emt 0:00:32] aiming for ...Be4.} 25. f5 {[%emt 0:00:19]} Bh7 {[%emt 0:01:15]} 26. Rf4 {[%emt 0:00:12] [#]} Ne5 $1 {[%emt 0:00:51]} 27. Re4 {[%emt 0:01:15]} (27. Nd4 Bf6) 27... Bxf5 {[%emt 0:01:05] Weighted Error Value: White=0.88/Black=0.30.  Loses game:     	White=2     	---        Mistake:       	White=1     	Black=1      Inaccurate:     	White=1     	---        OK:         	White=4     	Black=5      Best:        	White=2     	Black=3      Strong:       	---       	Black=1} 0-1

[Event "French-ch U16-U18 2024"]
[Site "Agen"]
[Date "2024.04.15"]
[Round "2.9"]
[White "Lemonnier, Antoine"]
[Black "Trevisiol, Antoine"]
[Result "0-1"]
[ECO "B11"]
[WhiteElo "1937"]
[BlackElo "2235"]
[Annotator "TA"]
[PlyCount "100"]
[EventDate "2024.04.14"]
[EventType "swiss"]
[EventCountry "FRA"]
[SourceTitle "playchess.com"]
[Source "ChessBase"]
[SourceQuality "1"]
[TimeControl "5400+30"]

{[%evp 10,100,36,8,17,-3,27,7,19,22,23,0,4,0,43,60,68,45,33,21,22,15,24,18,30,26,61,52,39,46,46,12,10,0,0,0,0,5,6,8,14,10,66,59,57,57,68,4,9,4,8,0,0,0,0,0,0,-20,-10,-20,-14,-18,-12,-8,0,0,8,-32,-2,-23,-8,-16,0,-85,0,-174,-158,-261,-255,-281,-277,-293,-297,-378,-376,-366,-361,-382,-335,-612,-638,-609,-608]} 1. e4 {[%emt 0:00:04]} c6 {[%emt 0:00:49]} 2. Nf3 {[%emt 0:00:18]} d5 {[%emt 0:00:16]} 3. Nc3 {[%emt 0:00:07]} Bg4 {[%emt 0:00:18]} 4. h3 {[%emt 0:00:13]} Bxf3 {[%emt 0:00:17]} 5. Qxf3 {[%emt 0:00:07]} e6 {[%emt 0:00:14]} 6. g3 {[%emt 0:00:51]} Bc5 {[%emt 0:00:31]} 7. Bg2 {[%emt 0:00:43]} Nd7 {[%emt 0:00:52]} 8. d3 {[%emt 0:11:44]} Ne7 {[%emt 0:01:35] The position is equal.} 9. O-O {[%emt 0:00:45]} O-O {[%emt 0:01:02]} 10. Re1 {[%emt 0:06:16]} Qc7 {[%emt 0:07:53]} 11. Ne2 {[%emt 0:09:02]} f5 {[%emt 0:17:50]} 12. exd5 {[%emt 0:07:58] Black must now prevent d4.} Ne5 {[%emt 0:20:45]} 13. Qh5 {[%emt 0:02:51] aiming for d4.} Nxd5 {[%emt 0:01:21]} 14. Nf4 {[%emt 0:10:05]} Rae8 {[%emt 0:07:32][%cal Oe5g6]} 15. c3 {[%emt 0:09:10]} (15. Qd1 {simplifies} Nxf4 16. Bxf4 Bd6 17. d4) 15... Bd6 {[%emt 0:01:41]} 16. d4 {[%emt 0:02:31]} Nxf4 {[%emt 0:00:47]} 17. Bxf4 {[%emt 0:00:35]} Ng6 {[%emt 0:01:11]} 18. Bxd6 {[%emt 0:01:13]} Qxd6 {[%emt 0:00:03]} 19. f4 {[%emt 0:00:33]} c5 {[%emt 0:02:01]} 20. Qd1 {[%emt 0:05:44]} ({Much weaker is} 20. Bxb7 cxd4 21. cxd4 Qxd4+ 22. Kh1 Qxb2 $17) 20... Re7 {[%emt 0:05:51]} 21. Qd3 {[%emt 0:03:41]} Rd8 {[%emt 0:01:33]} 22. Rad1 {[%emt 0:01:45]} Qb6 {[%emt 0:07:31] Against Qb5} 23. Qc4 {[%emt 0:03:00]} cxd4 {[%emt 0:00:20]} 24. cxd4 {[%emt 0:00:57][%cal Bc3d4,Bd4d5][%mdl 32]} Nf8 {[%emt 0:00:36][%cal Oe7d7]} 25. Qc5 {[%emt 0:04:45]} Red7 {[%emt 0:05:21]} (25... Rd6 $11) 26. Qxb6 $14 {[%emt 0:02:04]} axb6 {[%emt 0:00:02] [#]} 27. d5 $1 {[%emt 0:00:37]} Rd6 {[%emt 0:05:03]} (27... Kf7 28. Re5) 28. Rd4 {[%emt 0:02:46]} (28. h4 $14) 28... Ng6 $11 {[%emt 0:01:45]} 29. Kf2 {[%emt 0:07:37]} (29. Rxe6 $2 Rxe6 30. g4 Ne7 31. gxf5 Red6 $19 (31... Nxf5 $2 32. Rb4 $19)) 29... exd5 {[%emt 0:00:33]} 30. g4 {[%emt 0:02:29]} Kf7 {[%emt 0:01:58]} 31. Red1 {[%emt 0:01:29]} Ne7 {[%emt 0:00:23]} 32. R1d2 {[%emt 0:01:42]} h6 {[%emt 0:00:48]} 33. Kg3 {[%emt 0:00:57]} Kf6 {[%emt 0:00:22]} 34. R2d3 {[%emt 0:00:46]} Rc8 {[%emt 0:01:14]} 35. Rd2 {[%emt 0:00:57]} Rc5 {[%emt 0:00:31]} 36. R4d3 {[%emt 0:01:11]} Ra5 {[%emt 0:01:16]} 37. a3 {[%emt 0:00:19]} Rc5 {[%emt 0:00:13]} 38. Rd4 {[%emt 0:00:22]} Ke6 {[%emt 0:01:31]} 39. R4d3 {[%emt 0:00:54]} b5 {[%emt 0:01:09]} 40. Re3+ {[%emt 0:00:41]} Kf6 {[%emt 0:00:46]} 41. Re5 {[%emt 0:00:28]} (41. g5+ $11 Kf7 42. Re5) 41... b6 {[%emt 0:00:56]} ({Black should play} 41... g5 $17 {...gxf4+ is the strong threat.} 42. Re1 b4) 42. Rd4 {[%emt 0:00:37]} (42. Rde2 $11 {and White has nothing to worry.} Rc7 43. g5+ hxg5 44. fxg5+ Kf7 (44... Kxg5 $2 {loses.} 45. Rxe7 Rxe7 46. Rxe7 $18) 45. Rd2) 42... Rc4 {[%emt 0:00:46]} 43. Rd3 {[%emt 0:00:16]} (43. Rd2 $17) 43... g5 $19 {[%emt 0:00:44]} 44. Re1 {[%emt 0:00:48]} Rxf4 {[%emt 0:00:51]} ({But not} 44... gxf4+ 45. Kf2 $17) 45. Rb3 {[%emt 0:00:27] [#]} b4 $1 {[%emt 0:00:54]} 46. Rxb4 {[%emt 0:00:25]} (46. Rd1 Rc4) 46... Rxb4 {[%emt 0:00:07]} 47. axb4 {[%emt 0:00:02]} f4+ {[%emt 0:00:18]} 48. Kf3 {[%emt 0:00:19]} Nc6 {[%emt 0:00:18]} 49. h4 $2 {[%emt 0:00:33]} (49. b5 Na5 50. Bh1) 49... Ne5+ {[%emt 0:00:27]} 50. Ke2 {[%emt 0:00:52]} Nxg4 {[%emt 0:00:13] Weighted Error Value: White=0.29 (precise) /Black=0.11 (very precise) .  Loses game:     	White=1     	---        Mistake:       	White=4     	Black=2      Inaccurate:     	White=2     	Black=4      OK:         	White=11    	Black=21     Best:        	White=2     	Black=1      Brilliant:      	White=1     	---} 0-1